fUSD/lending_fUSD_20240423
["ID","MTS","AMOUNT","RATE_DAILY","PERIOD"]
[323310381,1713885037539,-1061.71,0.00011737,2]
[323310383,1713885037549,-500.0,0.00011737,2]
[323310385,1713885037558,-500.0,0.00011737,2]
[323310387,1713885037568,-543.32,0.00011737,2]
[323310388,1713885037578,-500.0,0.00011737,2]
[323310390,1713885037588,-504.14683265,0.00011737,2]
[323310393,1713885037598,-500.0,0.00011737,2]
[323310395,1713885037608,-500.0,0.00011737,2]
[323310397,1713885037618,-1927.54,0.00011737,2]
[323310399,1713885037628,-500.0,0.00011737,2]
[323310401,1713885037637,-500.0,0.00011737,2]
[323310404,1713885037648,-500.0,0.00011737,2]
[323310407,1713885037658,-500.0,0.00011737,2]
[323310410,1713885037668,-500.0,0.00011737,2]
[323310412,1713885037682,-1478.66,0.00011737,2]
[323310416,1713885037692,-500.0,0.00011737,2]
[323310419,1713885037702,-500.0,0.00011737,2]
[323310421,1713885037712,-500.0,0.00011737,2]
[323310424,1713885037722,-500.0,0.00011737,2]
[323310427,1713885037732,-500.0,0.00011737,2]
[323310428,1713885037742,-500.0,0.00011737,2]
[323310430,1713885037752,-500.0,0.00011737,2]
[323310431,1713885037761,-500.0,0.00011737,2]
[323310433,1713885037771,-500.0,0.00011737,2]
[323310435,1713885037781,-500.0,0.00011737,2]
[323310436,1713885037790,-500.0,0.00011737,2]
[323310438,1713885037799,-500.0,0.00011737,2]
[323310440,1713885037809,-500.0,0.00011737,2]
[323310441,1713885037818,-500.0,0.00011737,2]
[323310443,1713885037827,-810.79,0.00011737,2]
[323310445,1713885037837,-500.0,0.00011737,2]
[323310446,1713885037846,-5247.78,0.00011737,2]
[323310448,1713885037856,-500.0,0.00011737,2]
[323310450,1713885037865,-861.67,0.00011737,2]
[323310451,1713885037874,-1477.82,0.00011737,2]
[323310453,1713885037883,-550.8,0.00011737,2]
[323310455,1713885037892,-492.49653645,0.00011737,2]
[323310456,1713885037902,-500.0,0.00011737,2]
[323310458,1713885037911,-500.0,0.00011737,2]
[323310460,1713885037920,-500.0,0.00011737,2]
[323310461,1713885037932,-500.0,0.00011737,2]
[323310463,1713885037942,-500.0,0.00011737,2]
[323310465,1713885037952,-502.98081121,0.00011737,2]
[323310466,1713885037961,-500.0,0.00011737,2]
[323310468,1713885037971,-500.0,0.00011737,2]
[323310470,1713885037980,-500.0,0.00011737,2]
[323310472,1713885037989,-500.0,0.00011737,2]
[323310473,1713885037999,-500.0,0.00011737,2]
[323310475,1713885038008,-1180.66,0.00011737,2]
[323310477,1713885038017,-500.0,0.00011737,2]
[323310479,1713885038027,-813.98,0.00011737,2]
[323310480,1713885038036,-765.91,0.00011737,2]
[323310483,1713885038046,-502.55950854,0.00011737,2]
[323310485,1713885038055,-500.0,0.00011737,2]
[323310487,1713885038064,-6802.21,0.00011737,2]
[323310489,1713885038073,-500.0,0.00011737,2]
[323310491,1713885038082,-500.0,0.00011737,2]
[323310493,1713885038091,-502.19285768,0.00011737,2]
[323310494,1713885038100,-500.0,0.00011737,2]
[323310496,1713885038111,-500.0,0.00011737,2]
[323310499,1713885038120,-500.0,0.00011737,2]
[323310502,1713885038129,-500.0,0.00011737,2]
[323310504,1713885038139,-500.0,0.00011737,2]
[323310506,1713885038150,-500.0,0.00011737,2]
[323310508,1713885038159,-1633.88,0.00011737,2]
[323310510,1713885038169,-500.0,0.00011737,2]
[323310512,1713885038180,-500.0,0.00011737,2]
[323310514,1713885038189,-500.0,0.00011737,2]
[323310516,1713885038199,-500.43646258,0.00011737,2]
[323310518,1713885038208,-500.0,0.00011737,2]
[323310520,1713885038218,-500.0,0.00011737,2]
[323310522,1713885038227,-500.0,0.00011737,2]
[323310524,1713885038236,-500.0,0.00011737,2]
[323310526,1713885038245,-500.0,0.00011737,2]
[323310528,1713885038255,-1109.35,0.00011737,2]
[323310530,1713885038264,-500.0,0.00011737,2]
[323310532,1713885038274,-502.60640314,0.00011737,2]
[323310534,1713885038283,-500.0,0.00011737,2]
[323310536,1713885038292,-500.0,0.00011737,2]
[323310538,1713885038301,-504.08848076,0.00011737,2]
[323310540,1713885038311,-500.0,0.00011737,2]
[323310542,1713885038321,-635.77,0.00011737,2]
[323310544,1713885038330,-694.6,0.00011737,2]
[323310546,1713885038340,-500.0,0.00011737,2]
[323310548,1713885038349,-1266.26,0.00011737,2]
[323310550,1713885038359,-500.0,0.00011737,2]
[323310552,1713885038368,-508.75750305,0.00011737,2]
[323310554,1713885038378,-540.24,0.00011737,2]
[323310556,1713885038387,-500.0,0.00011737,2]
[323310558,1713885038397,-1098.43,0.00011737,2]
[323310560,1713885038406,-1019.39,0.00011737,2]
[323310562,1713885038416,-500.0,0.00011737,2]
[323310564,1713885038429,-500.0,0.00011737,2]
[323310566,1713885038438,-500.0,0.00011737,2]
[323310568,1713885038448,-501.75847944,0.00011737,2]
[323310570,1713885038457,-500.0,0.00011737,2]
[323310572,1713885038467,-500.0,0.00011737,2]
[323310574,1713885038476,-553.08,0.00011737,2]
[323310576,1713885038486,-838.99,0.00011737,2]
[323310579,1713885038496,-500.0,0.00011737,2]
[323310581,1713885038505,-500.0,0.00011737,2]
[323310582,1713885038514,-500.0,0.00011737,2]
[323310584,1713885038523,-500.0,0.00011737,2]
[323310586,1713885038533,-500.0,0.00011737,2]
[323310589,1713885038543,-500.0,0.00011737,2]
[323310591,1713885038553,-778.81,0.00011737,2]
[323310593,1713885038562,-504.80833347,0.00011737,2]
[323310595,1713885038572,-719.43,0.00011737,2]
[323310597,1713885038581,-500.0,0.00011737,2]
[323310599,1713885038590,-500.0,0.00011737,2]
[323310601,1713885038600,-500.0,0.00011737,2]
[323310603,1713885038610,-500.0,0.00011737,2]
[323310605,1713885038619,-500.0,0.00011737,2]
[323310607,1713885038628,-500.0,0.00011737,2]
[323310609,1713885038637,-500.0,0.00011737,2]
[323310611,1713885038646,-500.0,0.00011737,2]
[323310613,1713885038656,-500.0,0.00011737,2]
[323310615,1713885038665,-504.06602325,0.00011737,2]
[323310617,1713885038677,-500.0,0.00011737,2]
[323310619,1713885038690,-500.0,0.00011737,2]
[323310621,1713885038699,-500.0,0.00011737,2]
[323310623,1713885038709,-2617.81,0.00011737,2]
[323310625,1713885038718,-500.0,0.00011737,2]
[323310627,1713885038728,-1182.51,0.00011737,2]
[323310629,1713885038737,-554.09,0.00011737,2]
[323310631,1713885038747,-500.0,0.00011737,2]
[323310633,1713885038756,-500.0,0.00011737,2]
[323310635,1713885038767,-505.49708433,0.00011737,2]
[323310637,1713885038777,-500.0,0.00011737,2]
[323310639,1713885038786,-505.4215157,0.00011737,2]
[323310641,1713885038795,-500.0,0.00011737,2]
[323310643,1713885038804,-500.0,0.00011737,2]
[323310645,1713885038813,-500.0,0.00011737,2]
[323310647,1713885038823,-500.0,0.00011737,2]
[323310649,1713885038832,-500.0,0.00011737,2]
[323310651,1713885038841,-2297.67,0.00011737,2]
[323310653,1713885038851,-504.27158862,0.00011737,2]
[323310655,1713885038860,-500.0,0.00011737,2]
[323310657,1713885038869,-500.0,0.00011737,2]
[323310659,1713885038878,-500.0,0.00011737,2]
[323310661,1713885038887,-500.0,0.00011737,2]
[323310663,1713885038896,-20704.37,0.00011737,2]
[323310665,1713885038905,-500.0,0.00011737,2]
[323310667,1713885038915,-1317.09,0.00011737,2]
[323310669,1713885038927,-500.0,0.00011737,2]
[323310671,1713885038936,-500.0,0.00011737,2]
[323310673,1713885038946,-500.0,0.00011737,2]
[323310675,1713885038956,-500.0,0.00011737,2]
[323310677,1713885038965,-547.33,0.00011737,2]
[323310679,1713885038975,-500.0,0.00011737,2]
[323310681,1713885038984,-500.0,0.00011737,2]
[323310683,1713885038993,-500.0,0.00011737,2]
[323310685,1713885039003,-500.0,0.00011737,2]
[323310687,1713885039012,-2683.66,0.00011737,2]
[323310689,1713885039021,-500.0,0.00011737,2]
[323310691,1713885039030,-500.0,0.00011737,2]
[323310693,1713885039039,-500.0,0.00011737,2]
[323310695,1713885039048,-500.0,0.00011737,2]
[323310697,1713885039058,-500.0,0.00011737,2]
[323310699,1713885039067,-500.0,0.00011737,2]
[323310701,1713885039076,-500.0,0.00011737,2]
[323310703,1713885039086,-500.0,0.00011737,2]
[323310705,1713885039095,-3151.59,0.00011737,2]
[323310707,1713885039104,-504.26556374,0.00011737,2]
[323310710,1713885039114,-500.0,0.00011737,2]
[323310712,1713885039124,-500.0,0.00011737,2]
[323310713,1713885039133,-500.0,0.00011737,2]
[323310715,1713885039143,-500.0,0.00011737,2]
[323310717,1713885039152,-500.0,0.00011737,2]
[323310719,1713885039161,-2540.15,0.00011737,2]
[323310721,1713885039171,-958.99,0.00011737,2]
[323310723,1713885039181,-500.0,0.00011737,2]
[323310726,1713885039191,-306.2320016,0.00011737,2]
[323310727,1713885039200,-500.0,0.00011737,2]
[323310728,1713885039209,-500.0,0.00011737,2]
[323310729,1713885039219,-580.58,0.00011737,2]
[323310730,1713885039228,-500.0,0.00011737,2]
[323310731,1713885039237,-1437.11,0.00011737,2]
[323310732,1713885039247,-500.0,0.00011737,2]
[323310733,1713885039257,-500.0,0.00011737,2]
[323310734,1713885039266,-500.0,0.00011737,2]
[323310735,1713885039275,-500.0,0.00011737,2]
[323310736,1713885039284,-1032.63,0.00011737,2]
[323310737,1713885039293,-500.0,0.00011737,2]
[323310738,1713885039302,-502.15813211,0.00011737,2]
[323310740,1713885039311,-500.0,0.00011737,2]
[323310742,1713885039321,-500.0,0.00011737,2]
[323310744,1713885039330,-500.0,0.00011737,2]
[323310746,1713885039339,-738.66,0.00011737,2]
[323310748,1713885039349,-616.30098265,0.00011737,2]
[323310750,1713885039358,-500.0,0.00011737,2]
[323310752,1713885039368,-500.0,0.00011737,2]
[323310754,1713885039377,-688.24,0.00011737,2]
[323310756,1713885039387,-500.0,0.00011737,2]
[323310758,1713885039396,-500.0,0.00011737,2]
[323310760,1713885039406,-500.0,0.00011737,2]
[323310762,1713885039416,-500.0,0.00011737,2]
[323310764,1713885039427,-500.0,0.00011737,2]
[323310766,1713885039436,-500.0,0.00011737,2]
[323310768,1713885039446,-826.04,0.00011737,2]
[323310771,1713885039455,-500.0,0.00011737,2]
[323310773,1713885039465,-548.39,0.00011737,2]
[323310775,1713885039475,-500.0,0.00011737,2]
[323310777,1713885039484,-500.0,0.00011737,2]
[323310779,1713885039493,-500.0,0.00011737,2]
[323310781,1713885039502,-1241.26,0.00011737,2]
[323310783,1713885039512,-500.0,0.00011737,2]
[323310785,1713885039521,-500.0,0.00011737,2]
[323310787,1713885039532,-630.35,0.00011737,2]
[323310789,1713885039541,-500.0,0.00011737,2]
[323310791,1713885039551,-500.0,0.00011737,2]
[323310793,1713885039560,-500.0,0.00011737,2]
[323310795,1713885039570,-500.0,0.00011737,2]
[323310797,1713885039579,-536.97,0.00011737,2]
[323310799,1713885039588,-500.0,0.00011737,2]
[323310801,1713885039597,-558.9,0.00011737,2]
[323310803,1713885039606,-1100.67,0.00011737,2]
[323310805,1713885039616,-500.0,0.00011737,2]
[323310807,1713885039625,-500.0,0.00011737,2]
[323310809,1713885039635,-500.0,0.00011737,2]
[323310812,1713885039644,-500.0,0.00011737,2]
[323310814,1713885039654,-500.0,0.00011737,2]
[323310816,1713885039663,-500.0,0.00011737,2]
[323310817,1713885039674,-500.0,0.00011737,2]
[323310819,1713885039685,-500.0,0.00011737,2]
[323310829,1713885039763,-289.52815411,0.00011737,2]
[323310831,1713885039773,-1643.78,0.00011737,2]
[323310833,1713885039782,-500.0,0.00011737,2]
[323310835,1713885039792,-987.43,0.00011737,2]
[323310836,1713885039801,-500.0,0.00011737,2]
[323310839,1713885039811,-500.0,0.00011737,2]
[323310841,1713885039820,-500.0,0.00011737,2]
[323310842,1713885039829,-500.0,0.00011737,2]
[323310845,1713885039838,-500.0,0.00011737,2]
[323310846,1713885039848,-740.88,0.00011737,2]
[323310848,1713885039858,-500.0,0.00011737,2]
[323310850,1713885039867,-500.0,0.00011737,2]
[323310852,1713885039876,-649.63,0.00011737,2]
[323310854,1713885039886,-500.0,0.00011737,2]
[323310856,1713885039895,-500.0,0.00011737,2]
[323310858,1713885039904,-500.0,0.00011737,2]
[323310860,1713885039913,-500.0,0.00011737,2]
[323310862,1713885039922,-500.0,0.00011737,2]
[323310864,1713885039932,-500.0,0.00011737,2]
[323310866,1713885039942,-500.0,0.00011737,2]
[323310868,1713885039951,-500.0,0.00011737,2]
[323310870,1713885039959,-500.0,0.00011737,2]
[323310872,1713885039968,-613.73,0.00011737,2]
[323310874,1713885039978,-500.0,0.00011737,2]
[323310876,1713885039987,-500.0,0.00011737,2]
[323310878,1713885039996,-500.0,0.00011737,2]
[323310880,1713885040005,-500.0,0.00011737,2]
[323310882,1713885040014,-581.13982233,0.00011737,2]
[323310884,1713885040023,-500.0,0.00011737,2]
[323310886,1713885040032,-500.0,0.00011737,2]
[323310888,1713885040041,-500.0,0.00011737,2]
[323310890,1713885040050,-2325.56,0.00011737,2]
[323310892,1713885040059,-1086.28,0.00011737,2]
[323310894,1713885040068,-500.0,0.00011737,2]
[323310896,1713885040077,-994.88,0.00011737,2]
[323310898,1713885040086,-500.0,0.00011737,2]
[323310900,1713885040095,-1439.79,0.00011737,2]
[323310902,1713885040104,-500.0,0.00011737,2]
[323310904,1713885040113,-500.0,0.00011737,2]
[323310907,1713885040123,-516.69,0.00011737,2]
[323310908,1713885040133,-500.0,0.00011737,2]
[323310910,1713885040142,-500.0,0.00011737,2]
[323310912,1713885040151,-500.0,0.00011737,2]
[323310914,1713885040160,-500.0,0.00011737,2]
[323310917,1713885040170,-500.0,0.00011737,2]
[323310918,1713885040181,-500.0,0.00011737,2]
[323310920,1713885040189,-500.0,0.00011737,2]
[323310922,1713885040198,-1048.54,0.00011737,2]
[323310924,1713885040207,-567.14021432,0.00011737,2]
[323310927,1713885040216,-603.5983868,0.00011737,2]
[323310929,1713885040225,-500.0,0.00011737,2]
[323310930,1713885040234,-500.0,0.00011737,2]
[323310933,1713885040243,-1069.93,0.00011737,2]
[323310934,1713885040253,-504.37,0.00011737,2]
[323310936,1713885040262,-500.0,0.00011737,2]
[323310938,1713885040271,-500.0,0.00011737,2]
[323310940,1713885040280,-169.24281867,0.00011737,2]
[323310942,1713885040289,-500.0,0.00011737,2]
[323310944,1713885040297,-500.0,0.00011737,2]
[323310946,1713885040306,-500.0,0.00011737,2]
[323310948,1713885040316,-500.0,0.00011737,2]
[323310951,1713885040325,-500.0,0.00011737,2]
[323310952,1713885040334,-500.0,0.00011737,2]
[323310954,1713885040343,-500.0,0.00011737,2]
[323310957,1713885040352,-828.02,0.00011737,2]
[323310958,1713885040361,-500.0,0.00011737,2]
[323310961,1713885040370,-500.0,0.00011737,2]
[323310963,1713885040380,-500.0,0.00011737,2]
[323310965,1713885040389,-500.0,0.00011737,2]
[323310967,1713885040398,-1306.8,0.00011737,2]
[323310969,1713885040407,-544.8,0.00011737,2]
[323310971,1713885040416,-500.0,0.00011737,2]
[323310973,1713885040427,-500.0,0.00011737,2]
[323310975,1713885040436,-500.0,0.00011737,2]
[323310977,1713885040445,-500.0,0.00011737,2]
[323310979,1713885040454,-500.0,0.00011737,2]
[323310981,1713885040463,-500.0,0.00011737,2]
[323310983,1713885040472,-500.0,0.00011737,2]
[323310985,1713885040483,-779.03,0.00011737,2]
[323310987,1713885040493,-1000.0,0.00011737,2]
[323310989,1713885040503,-500.0,0.00011737,2]
[323310991,1713885040513,-500.0,0.00011737,2]
[323310993,1713885040522,-500.0,0.00011737,2]
[323310995,1713885040532,-500.0,0.00011737,2]
[323310997,1713885040541,-500.0,0.00011737,2]
[323310999,1713885040550,-520.44,0.00011737,2]
[323311001,1713885040559,-500.0,0.00011737,2]
[323311003,1713885040568,-1020.17,0.00011737,2]
[323311004,1713885040577,-500.0,0.00011737,2]
[323311006,1713885040586,-544.40128037,0.00011737,2]
[323311008,1713885040595,-500.0,0.00011737,2]
[323311010,1713885040604,-500.0,0.00011737,2]
[323311012,1713885040613,-500.0,0.00011737,2]
[323311014,1713885040622,-1569.3,0.00011737,2]
[323311016,1713885040631,-500.0,0.00011737,2]
[323311018,1713885040640,-500.0,0.00011737,2]
[323311020,1713885040650,-500.0,0.00011737,2]
[323311022,1713885040660,-601.75,0.00011737,2]
[323311024,1713885040670,-500.0,0.00011737,2]
[323311026,1713885040684,-665.93,0.00011737,2]
[323311029,1713885040695,-500.0,0.00011737,2]
[323311031,1713885040704,-500.0,0.00011737,2]
[323311033,1713885040715,-500.0,0.00011737,2]
[323311035,1713885040724,-500.0,0.00011737,2]
[323311036,1713885040733,-500.0,0.00011737,2]
[323311038,1713885040742,-500.0,0.00011737,2]
[323311040,1713885040753,-500.0,0.00011737,2]
[323311042,1713885040763,-500.0,0.00011737,2]
[323311045,1713885040772,-500.0,0.00011737,2]
[323311047,1713885040782,-500.0,0.00011737,2]
[323311049,1713885040791,-500.0,0.00011737,2]
[323311051,1713885040801,-500.0,0.00011737,2]
[323311053,1713885040810,-4099.48,0.00011737,2]
[323311054,1713885040819,-500.0,0.00011737,2]
[323311056,1713885040831,-500.0,0.00011737,2]
[323311059,1713885040843,-504.68217336,0.00011737,2]
[323311060,1713885040853,-500.0,0.00011737,2]
[323311063,1713885040863,-500.0,0.00011737,2]
[323311064,1713885040874,-2493.62,0.00011737,2]
[323311066,1713885040884,-500.0,0.00011737,2]
[323311068,1713885040894,-1932.4,0.00011737,2]
[323311070,1713885040904,-500.0,0.00011737,2]
[323311073,1713885040916,-500.0,0.00011737,2]
[323311075,1713885040927,-500.0,0.00011737,2]
[323311077,1713885040937,-500.0,0.00011737,2]
[323311079,1713885040946,-500.0,0.00011737,2]
[323311080,1713885040957,-500.0,0.00011737,2]
[323311082,1713885040967,-500.0,0.00011737,2]
[323311085,1713885040978,-2027.7,0.00011737,2]
[323311086,1713885040988,-500.0,0.00011737,2]
[323311088,1713885040998,-500.0,0.00011737,2]
[323311090,1713885041007,-500.0,0.00011737,2]
[323311092,1713885041017,-500.0,0.00011737,2]
[323311094,1713885041026,-500.0,0.00011737,2]
[323311096,1713885041037,-500.0,0.00011737,2]
[323311099,1713885041046,-500.0,0.00011737,2]
[323311101,1713885041056,-500.0,0.00011737,2]
[323311102,1713885041066,-500.0,0.00011737,2]
[323311105,1713885041075,-500.0,0.00011737,2]
[323311106,1713885041086,-500.0,0.00011737,2]
[323311108,1713885041095,-500.0,0.00011737,2]
[323311111,1713885041106,-502.29506598,0.00011738,2]
[323311112,1713885041116,-500.0,0.00011738,2]
[323311114,1713885041125,-502.27432106,0.00011738,2]
[323311116,1713885041134,-501.86001043,0.00011738,2]
[323311118,1713885041144,-500.0,0.00011738,2]
[323311120,1713885041154,-461.72795453,0.00011738,2]
[323311122,1713885041164,-500.0,0.00011738,2]
[323311125,1713885041175,-591.89540234,0.00011738,2]
[323311127,1713885041185,-500.0,0.00011738,2]
[323311129,1713885041195,-500.0,0.00011738,2]
[323311131,1713885041205,-500.0,0.00011738,2]
[323311132,1713885041215,-500.0,0.00011738,2]
[323311134,1713885041226,-500.0,0.00011738,2]
[323311137,1713885041237,-500.0,0.00011738,2]
[323311138,1713885041248,-505.6568818,0.00011738,2]
[323311141,1713885041258,-500.0,0.00011738,2]
[323311142,1713885041270,-500.0,0.00011738,2]
[323311144,1713885041280,-500.0,0.00011738,2]
[323311146,1713885041289,-500.0,0.00011738,2]
[323311148,1713885041300,-500.0,0.00011738,2]
[323311149,1713885041309,-500.18201714,0.00011738,2]
[323311150,1713885041318,-177.55881634,0.00011738,2]
[323311151,1713885041327,-500.0,0.00011738,2]
[323311152,1713885041336,-500.32388245,0.00011738,2]
[323311153,1713885041344,-642.91680296,0.00011738,2]
[323311154,1713885041353,-500.23423474,0.00011738,2]
[323311155,1713885041363,-500.0,0.00011738,2]
[323311156,1713885041371,-503.36066454,0.00011738,2]
[323311157,1713885041380,-613.58476592,0.00011738,2]
[323311158,1713885041389,-502.78319785,0.00011738,2]
[323311159,1713885041398,-501.02396251,0.00011738,2]
[323311160,1713885041406,-522.57788366,0.00011738,2]
[323311161,1713885041416,-501.5305589,0.00011738,2]
[323311162,1713885041427,-500.0,0.00011738,2]
[323311163,1713885041436,-500.0,0.00011738,2]
[323311164,1713885041445,-524.25447272,0.00011738,2]
[323311165,1713885041454,-501.96182145,0.00011738,2]
[323311166,1713885041464,-500.0,0.00011738,2]
[323311167,1713885041475,-500.0,0.00011738,2]
[323311168,1713885041485,-502.3495353,0.00011738,2]
[323311169,1713885041495,-500.0,0.00011738,2]
[323311170,1713885041506,-474.40522822,0.00011738,2]
[323311171,1713885041515,-502.51901481,0.00011738,2]
[323311172,1713885041525,-500.0,0.00011738,2]
[323311173,1713885041538,-500.0,0.00011738,2]
[323311174,1713885041548,-512.87982601,0.00011738,2]
[323311175,1713885041558,-500.0,0.00011738,2]
[323311176,1713885041568,-500.0,0.00011738,2]
[323311177,1713885041579,-470.55151618,0.00011738,2]
[323311178,1713885041588,-500.0,0.00011738,2]
[323311179,1713885041598,-500.0,0.00011738,2]
[323311180,1713885041609,-500.0,0.00011738,2]
[323311181,1713885041619,-500.0,0.00011738,2]
[323311182,1713885041628,-501.21682806,0.00011738,2]
[323311183,1713885041639,-500.0,0.00011738,2]
[323311184,1713885041648,-708.13,0.00011738,2]
[323311185,1713885041658,-500.0,0.00011738,2]
[323311186,1713885041667,-503.81664259,0.00011738,2]
[323311187,1713885041678,-502.03561415,0.00011738,2]
[323311188,1713885041690,-500.0,0.00011738,2]
[323311189,1713885041700,-500.93723411,0.00011738,2]
[323311190,1713885041710,-500.0,0.00011738,2]
[323311191,1713885041720,-500.0,0.00011738,2]
[323311192,1713885041731,-500.87674506,0.00011738,2]
[323311193,1713885041741,-500.0,0.00011738,2]
[323311194,1713885041752,-500.0,0.00011738,2]
[323311195,1713885041762,-500.0,0.00011738,2]
[323311196,1713885041773,-500.34772551,0.00011738,2]
[323311197,1713885041783,-500.0,0.00011738,2]
[323311198,1713885041794,-502.85566403,0.00011738,2]
[323311199,1713885041803,-512.83,0.00011738,2]
[323311200,1713885041813,-500.0,0.00011738,2]
[323311201,1713885041823,-500.0,0.00011738,2]
[323311202,1713885041832,-501.13388617,0.00011738,2]
[323311203,1713885041842,-501.0297114,0.00011738,2]
[323311204,1713885041851,-500.0,0.00011738,2]
[323311205,1713885041862,-500.0,0.00011738,2]
[323311206,1713885041873,-500.0,0.00011738,2]
[323311207,1713885041882,-500.92417653,0.00011738,2]
[323311208,1713885041891,-500.0,0.00011738,2]
[323311209,1713885041901,-500.0,0.00011738,2]
[323311210,1713885041911,-501.6048296,0.00011738,2]
[323311211,1713885041921,-500.0,0.00011738,2]
[323311212,1713885041932,-500.0,0.00011738,2]
[323311213,1713885041942,-500.0,0.00011738,2]
[323311214,1713885041953,-500.0,0.00011738,2]
[323311215,1713885041962,-500.0,0.00011738,2]
[323311216,1713885041973,-504.1405987,0.00011738,2]
[323311217,1713885041983,-500.0,0.00011738,2]
[323311218,1713885041995,-500.0,0.00011738,2]
[323311219,1713885042005,-502.1510271,0.00011738,2]
[323311220,1713885042014,-500.0,0.00011738,2]
[323311221,1713885042024,-500.0,0.00011738,2]
[323311222,1713885042034,-500.0,0.00011738,2]
[323311223,1713885042045,-500.0,0.00011738,2]
[323311224,1713885042056,-500.0,0.00011738,2]
[323311225,1713885042066,-520.07986859,0.00011738,2]
[323311226,1713885042077,-510.31691279,0.00011738,2]
[323311227,1713885042086,-500.0,0.00011738,2]
[323311228,1713885042096,-509.41077927,0.00011738,2]
[323311229,1713885042106,-500.0,0.00011738,2]
[323311230,1713885042117,-393.07091078,0.00011738,2]
[323311231,1713885042127,-485.65804925,0.00011738,2]
[323311232,1713885042138,-500.0,0.00011738,2]
[323311233,1713885042148,-500.0,0.00011738,2]
[323311234,1713885042158,-500.0,0.00011738,2]
[323311235,1713885042168,-500.0,0.00011738,2]
[323311236,1713885042179,-507.08975839,0.00011738,2]
[323311237,1713885042190,-501.16434665,0.00011738,2]
[323311238,1713885042200,-500.0,0.00011738,2]
[323311239,1713885042210,-315.86507645,0.00011738,2]
[323311240,1713885042220,-500.0,0.00011738,2]
[323311241,1713885042230,-500.0,0.00011738,2]
[323311242,1713885042241,-500.0,0.00011738,2]
[323311243,1713885042252,-500.0,0.00011738,2]
[323311244,1713885042263,-500.0,0.00011738,2]
[323311245,1713885042273,-641.15,0.00011738,2]
[323311247,1713885042283,-528.99641875,0.00011738,2]
[323311249,1713885042294,-500.0,0.00011738,2]
[323311251,1713885042304,-500.0,0.00011738,2]
[323311253,1713885042314,-500.0,0.00011738,2]
[323311255,1713885042325,-508.37845454,0.00011738,2]
[323311257,1713885042334,-500.0,0.00011738,2]
[323311259,1713885042344,-500.0,0.00011738,2]
[323311261,1713885042354,-500.0,0.00011738,2]
[323311263,1713885042364,-500.0,0.00011738,2]
[323311265,1713885042373,-500.0,0.00011738,2]
[323311267,1713885042382,-500.0,0.00011738,2]
[323311269,1713885042392,-500.0,0.00011738,2]
[323311272,1713885042402,-500.0,0.00011738,2]
[323311274,1713885042412,-413.57235614,0.00011738,2]
[323311276,1713885042421,-500.0,0.00011738,2]
[323311277,1713885042431,-500.0,0.00011738,2]
[323311279,1713885042440,-500.0,0.00011738,2]